[Event "*** Titled Tuesday Blitz"]
[Site "Chess.com"]
[Date "2021.04.06"]
[Round "3"]
[White "noblerone"]
[Black "korbul"]
[Result "1-0"]
[WhiteElo "2395"]
[BlackElo "2555"]
[TimeControl "180+1"]
[EndTime "10:31:31 PDT"]
[Termination "noblerone won on time"]

1. d4 {[%clk 0:03:00.9]} 1... Nf6 {[%clk 0:02:59.2]} 2. Nf3 {[%clk 0:03:01.2]}
2... e6 {[%clk 0:02:58.7]} 3. Bg5 {[%clk 0:03:01.7]} 3... h6 {[%clk 0:02:57.9]}
4. Bh4 {[%clk 0:03:01.7]} 4... d5 {[%clk 0:02:57.8]} 5. Nbd2 {[%clk 0:03:01.2]}
5... c5 {[%clk 0:02:57.6]} 6. e3 {[%clk 0:03:01.7]} 6... Nc6 {[%clk 0:02:57.5]}
7. c3 {[%clk 0:03:01.8]} 7... Bd6 {[%clk 0:02:56.7]} 8. Bd3 {[%clk 0:03:00.2]}
8... Bd7 {[%clk 0:02:56.2]} 9. Qe2 {[%clk 0:02:59.4]} 9... Qb6 {[%clk
0:02:55.3]} 10. Rb1 {[%clk 0:02:57.5]} 10... cxd4 {[%clk 0:02:52.2]} 11. exd4
{[%clk 0:02:57.3]} 11... Nh5 {[%clk 0:02:47.1]} 12. Bg3 {[%clk 0:02:51.7]} 12...
Nxg3 {[%clk 0:02:46.2]} 13. hxg3 {[%clk 0:02:51.1]} 13... Qc7 {[%clk 0:02:41.7]}
14. a3 {[%clk 0:02:43.9]} 14... O-O-O {[%clk 0:02:38.9]} 15. O-O {[%clk
0:02:32.8]} 15... Kb8 {[%clk 0:02:38.5]} 16. b4 {[%clk 0:02:31.9]} 16... g5
{[%clk 0:02:33]} 17. Nb3 {[%clk 0:02:31.4]} 17... g4 {[%clk 0:02:29.2]} 18. Nh4
{[%clk 0:02:21.4]} 18... h5 {[%clk 0:02:28.7]} 19. Nc5 {[%clk 0:02:19.8]} 19...
Bc8 {[%clk 0:02:28.1]} 20. a4 {[%clk 0:02:16.1]} 20... Be7 {[%clk 0:02:08.4]}
21. a5 {[%clk 0:02:04.6]} 21... Bxh4 {[%clk 0:02:05.9]} 22. gxh4 {[%clk
0:02:05]} 22... g3 {[%clk 0:02:04.2]} 23. fxg3 {[%clk 0:01:50.7]} 23... Qxg3
{[%clk 0:02:03.1]} 24. Qf2 {[%clk 0:01:51.2]} 24... Qxf2+ {[%clk 0:01:51.6]} 25.
Rxf2 {[%clk 0:01:51.1]} 25... f5 {[%clk 0:01:39.5]} 26. Re1 {[%clk 0:01:49.9]}
26... Rh6 {[%clk 0:01:38.8]} 27. Rfe2 {[%clk 0:01:42.1]} 27... Rd6 {[%clk
0:01:37.4]} 28. Kf2 {[%clk 0:01:37.6]} 28... Ne7 {[%clk 0:01:36.8]} 29. g3
{[%clk 0:01:05]} 29... Ng8 {[%clk 0:01:31.3]} 30. Kf3 {[%clk 0:00:34.1]} 30...
b6 {[%clk 0:01:28.5]} 31. axb6 {[%clk 0:00:32.9]} 31... axb6 {[%clk 0:01:28.1]}
32. Nb3 {[%clk 0:00:32.3]} 32... Nf6 {[%clk 0:01:26.7]} 33. Kf4 {[%clk
0:00:31.7]} 33... Rg6 {[%clk 0:01:21.7]} 34. Rg2 {[%clk 0:00:21.8]} 34... Rg4+
{[%clk 0:01:13.9]} 35. Ke5 {[%clk 0:00:15.7]} 35... Ne8 {[%clk 0:01:13.2]} 36.
Nd2 {[%clk 0:00:12.9]} 36... Kc7 {[%clk 0:01:08.8]} 37. Rf1 {[%clk 0:00:13.2]}
37... Bd7 {[%clk 0:00:54.7]} 38. Rf4 {[%clk 0:00:12.5]} 38... Rg6 {[%clk
0:00:52.9]} 39. Nf3 {[%clk 0:00:10.6]} 39... Rc6 {[%clk 0:00:51.6]} 40. Ng5
{[%clk 0:00:10.5]} 40... Nd6 {[%clk 0:00:50.2]} 41. Rf1 {[%clk 0:00:08.7]} 41...
Rxc3 {[%clk 0:00:49.2]} 42. Rc2 {[%clk 0:00:08.5]} 42... Nc4+ {[%clk 0:00:48.2]}
43. Kf4 {[%clk 0:00:09]} 43... Rxd3 {[%clk 0:00:48]} 44. Rfc1 {[%clk 0:00:05.6]}
44... Rxd4+ {[%clk 0:00:40.6]} 45. Kf3 {[%clk 0:00:04.8]} 45... e5 {[%clk
0:00:35.4]} 46. Nf7 {[%clk 0:00:03.5]} 46... Rd3+ {[%clk 0:00:19.8]} 47. Kf2
{[%clk 0:00:04.1]} 47... Re6 {[%clk 0:00:14.7]} 48. Ng5 {[%clk 0:00:04]} 48...
Re8 {[%clk 0:00:14.1]} 49. Nf3 {[%clk 0:00:04.5]} 49... e4 {[%clk 0:00:12]} 50.
Ne1 {[%clk 0:00:05.2]} 50... Ra3 {[%clk 0:00:10.5]} 51. Ke2 {[%clk 0:00:05.3]}
51... Rg8 {[%clk 0:00:09.4]} 52. Kf2 {[%clk 0:00:05]} 52... Rgxg3 {[%clk
0:00:08.7]} 53. b5 {[%clk 0:00:05.4]} 53... f4 {[%clk 0:00:07.4]} 54. Rd1 {[%clk
0:00:05.2]} 54... e3+ {[%clk 0:00:08.3]} 55. Ke2 {[%clk 0:00:04.9]} 55... Rh3
{[%clk 0:00:07.8]} 56. Rd3 {[%clk 0:00:04]} 56... Rh2+ {[%clk 0:00:07.6]} 57.
Kf3 {[%clk 0:00:04.5]} 57... Rxd3 {[%clk 0:00:03.8]} 58. Rxh2 {[%clk 0:00:04]}
58... Ne5+ {[%clk 0:00:02.9]} 59. Kxf4 {[%clk 0:00:04.8]} 59... Nc4 {[%clk
0:00:03]} 60. Nxd3 {[%clk 0:00:05.2]} 60... e2 {[%clk 0:00:02.8]} 61. Rxe2
{[%clk 0:00:06.1]} 61... Bxb5 {[%clk 0:00:02.5]} 62. Ne5 {[%clk 0:00:07]} 62...
Kd6 {[%clk 0:00:02.5]} 63. Nxc4+ {[%clk 0:00:06.9]} 63... Bxc4 {[%clk
0:00:02.4]} 64. Rg2 {[%clk 0:00:07.3]} 64... b5 {[%clk 0:00:03.3]} 65. Ke3
{[%clk 0:00:07]} 65... b4 {[%clk 0:00:04.2]} 66. Kd4 {[%clk 0:00:07.1]} 66... b3
{[%clk 0:00:04.1]} 67. Kc3 {[%clk 0:00:07.2]} 67... Ke6 {[%clk 0:00:04.2]} 68.
Rg5 {[%clk 0:00:07.3]} 68... Be2 {[%clk 0:00:03.3]} 69. Kxb3 {[%clk 0:00:05.8]}
69... Bg4 {[%clk 0:00:03.9]} 70. Kc3 {[%clk 0:00:06]} 70... Bf3 {[%clk
0:00:04.4]} 71. Kd2 {[%clk 0:00:06.9]} 71... d4 {[%clk 0:00:04.1]} 72. Kd3
{[%clk 0:00:07.1]} 72... Bg4 {[%clk 0:00:04.3]} 73. Kxd4 {[%clk 0:00:07.7]}
73... Kf6 {[%clk 0:00:05.2]} 74. Ke4 {[%clk 0:00:08.1]} 74... Ke6 {[%clk
0:00:05.3]} 75. Kf4 {[%clk 0:00:09]} 75... Kf6 {[%clk 0:00:05.5]} 76. Ra5 {[%clk
0:00:09.7]} 76... Kg6 {[%clk 0:00:05.6]} 77. Ra6+ {[%clk 0:00:10.1]} 77... Kf7
{[%clk 0:00:05.5]} 78. Kg5 {[%clk 0:00:11]} 78... Ke7 {[%clk 0:00:05.4]} 79.
Ra7+ {[%clk 0:00:10.9]} 79... Ke6 {[%clk 0:00:05.7]} 80. Ra8 {[%clk 0:00:10.3]}
80... Ke5 {[%clk 0:00:06]} 81. Re8+ {[%clk 0:00:10.5]} 81... Kd6 {[%clk
0:00:06.9]} 82. Re4 {[%clk 0:00:09.9]} 82... Kd5 {[%clk 0:00:06.7]} 83. Re3
{[%clk 0:00:09.2]} 83... Kd6 {[%clk 0:00:06.8]} 84. Kf6 {[%clk 0:00:09.2]} 84...
Kd5 {[%clk 0:00:06.8]} 85. Rg3 {[%clk 0:00:08.7]} 85... Kd4 {[%clk 0:00:05.6]}
86. Kg5 {[%clk 0:00:08.6]} 86... Ke5 {[%clk 0:00:05.6]} 87. Re3+ {[%clk
0:00:07.5]} 87... Kd5 {[%clk 0:00:05.7]} 88. Kf6 {[%clk 0:00:06.6]} 88... Kd4
{[%clk 0:00:05.2]} 89. Re5 {[%clk 0:00:07]} 89... Kd3 {[%clk 0:00:04.7]} 90. Rg5
{[%clk 0:00:07.9]} 90... Kd4 {[%clk 0:00:04.8]} 91. Rg7 {[%clk 0:00:07.3]} 91...
Ke4 {[%clk 0:00:04.5]} 92. Kg5 {[%clk 0:00:06.8]} 92... Kf3 {[%clk 0:00:03.9]}
93. Rc7 {[%clk 0:00:06.1]} 93... Ke3 {[%clk 0:00:03.8]} 94. Rc4 {[%clk
0:00:05.7]} 94... Kf3 {[%clk 0:00:02.6]} 95. Rf4+ {[%clk 0:00:04.6]} 95... Ke3
{[%clk 0:00:02.5]} 96. Rxg4 {[%clk 0:00:04.4]} 96... hxg4 {[%clk 0:00:02.7]} 97.
Kxg4 {[%clk 0:00:05]} 97... Ke4 {[%clk 0:00:03.6]} 98. Kg5 {[%clk 0:00:05.6]}
98... Kd5 {[%clk 0:00:03.9]} 99. Kg6 {[%clk 0:00:06.3]} 99... Ke6 {[%clk
0:00:04.8]} 100. h5 {[%clk 0:00:07.2]} 100... Ke7 {[%clk 0:00:05.2]} 101. Kg7
{[%clk 0:00:07.9]} 101... Ke6 {[%clk 0:00:05.4]} 102. h6 {[%clk 0:00:08.8]}
102... Kf5 {[%clk 0:00:06.3]} 103. h7 {[%clk 0:00:09.7]} 103... Kg5 {[%clk
0:00:06.9]} 104. h8=Q {[%clk 0:00:10.6]} 104... Kf5 {[%clk 0:00:07.8]} 105. Qf8+
{[%clk 0:00:10.9]} 105... Kg5 {[%clk 0:00:08.7]} 106. Qf6+ {[%clk 0:00:11.8]}
1-0

[Event "*** Titled Tuesday Blitz"]
[Site "Chess.com"]
[Date "2021.04.06"]
[Round "4"]
[White "sergeikim"]
[Black "madamDD"]
[Result "1-0"]
[WhiteElo "2537"]
[BlackElo "2368"]
[TimeControl "180+1"]
[EndTime "10:34:49 PDT"]
[Termination "sergeikim won by resignation"]

1. d4 {[%clk 0:03:00.9]} 1... Nf6 {[%clk 0:02:57.2]} 2. c4 {[%clk 0:03:01.8]}
2... e6 {[%clk 0:02:55.1]} 3. Nc3 {[%clk 0:03:02.7]} 3... Bb4 {[%clk 0:02:54.6]}
4. Qc2 {[%clk 0:03:01.6]} 4... b6 {[%clk 0:02:53.6]} 5. a3 {[%clk 0:03:01.4]}
5... Bxc3+ {[%clk 0:02:50.2]} 6. Qxc3 {[%clk 0:03:01.3]} 6... Bb7 {[%clk
0:02:43.5]} 7. Nf3 {[%clk 0:03:01]} 7... O-O {[%clk 0:02:42.8]} 8. g3 {[%clk
0:03:00.9]} 8... Ne4 {[%clk 0:02:36]} 9. Qc2 {[%clk 0:03:00]} 9... f5 {[%clk
0:02:35.7]} 10. Bg2 {[%clk 0:02:59.5]} 10... d6 {[%clk 0:02:35]} 11. O-O {[%clk
0:02:59.1]} 11... Nd7 {[%clk 0:02:34.6]} 12. Ng5 {[%clk 0:02:58.3]} 12... Ndf6
{[%clk 0:02:11.7]} 13. Nxe6 {[%clk 0:02:57.2]} 13... Qe7 {[%clk 0:02:03.7]} 14.
Nxf8 {[%clk 0:02:56.9]} 14... Rxf8 {[%clk 0:02:03.3]} 15. f3 {[%clk 0:02:56.8]}
1-0

[Event "*** Titled Tuesday Blitz"]
[Site "Chess.com"]
[Date "2021.04.06"]
[Round "4"]
[White "MasterMK73"]
[Black "geordie_derraugh"]
[Result "1-0"]
[WhiteElo "2282"]
[BlackElo "2443"]
[TimeControl "180+1"]
[EndTime "10:35:37 PDT"]
[Termination "MasterMK73 won by resignation"]

1. e4 {[%clk 0:03:00.9]} 1... c5 {[%clk 0:02:59.6]} 2. Nf3 {[%clk 0:02:58.8]}
2... e6 {[%clk 0:02:55.8]} 3. c4 {[%clk 0:02:56.9]} 3... Nc6 {[%clk 0:02:53.8]}
4. Nc3 {[%clk 0:02:53.9]} 4... Nf6 {[%clk 0:02:47.3]} 5. d4 {[%clk 0:02:50.3]}
5... cxd4 {[%clk 0:02:46.2]} 6. Nxd4 {[%clk 0:02:49]} 6... Bb4 {[%clk
0:02:45.8]} 7. Nxc6 {[%clk 0:02:47.8]} 7... bxc6 {[%clk 0:02:46]} 8. Bd3 {[%clk
0:02:46.5]} 8... d5 {[%clk 0:02:37.4]} 9. cxd5 {[%clk 0:02:43.2]} 9... cxd5
{[%clk 0:02:36]} 10. Qa4+ {[%clk 0:02:40.5]} 10... Bd7 {[%clk 0:02:13.3]} 11.
Qxb4 {[%clk 0:02:38.9]} 11... Rb8 {[%clk 0:02:11.4]} 12. Qd4 {[%clk 0:02:32.8]}
12... dxe4 {[%clk 0:02:10.6]} 13. Nxe4 {[%clk 0:02:17.8]} 13... Nxe4 {[%clk
0:02:10]} 14. Bxe4 {[%clk 0:02:03.5]} 14... O-O {[%clk 0:02:09]} 15. O-O {[%clk
0:02:01.1]} 15... Qc7 {[%clk 0:02:01.4]} 16. Bf4 {[%clk 0:01:55.6]} 1-0

[Event "*** Titled Tuesday Blitz"]
[Site "Chess.com"]
[Date "2021.04.06"]
[Round "4"]
[White "Grandmaster1369"]
[Black "Ze-Pequeno"]
[Result "1-0"]
[WhiteElo "2442"]
[BlackElo "2240"]
[TimeControl "180+1"]
[EndTime "10:35:54 PDT"]
[Termination "Grandmaster1369 won by resignation"]

1. e4 {[%clk 0:03:00.9]} 1... c5 {[%clk 0:02:58.7]} 2. Nf3 {[%clk 0:03:00.6]}
2... d6 {[%clk 0:02:58.6]} 3. Bb5+ {[%clk 0:03:00]} 3... Bd7 {[%clk 0:02:58.3]}
4. Bxd7+ {[%clk 0:02:59.8]} 4... Qxd7 {[%clk 0:02:59.2]} 5. O-O {[%clk
0:02:59.4]} 5... Nf6 {[%clk 0:02:58.8]} 6. Qe2 {[%clk 0:02:59.8]} 6... Nc6
{[%clk 0:02:58.2]} 7. Rd1 {[%clk 0:03:00.4]} 7... g5 {[%clk 0:02:57.6]} 8. Nxg5
{[%clk 0:02:46.5]} 8... Nd4 {[%clk 0:02:57]} 9. Qd3 {[%clk 0:02:44.3]} 9... Qg4
{[%clk 0:02:39.3]} 10. Nf3 {[%clk 0:02:41]} 10... Rg8 {[%clk 0:02:36.7]} 11. g3
{[%clk 0:02:17.5]} 11... Qxf3 {[%clk 0:02:34.5]} 12. Qxf3 {[%clk 0:02:16.9]}
12... Nxf3+ {[%clk 0:02:34.3]} 13. Kg2 {[%clk 0:02:17.8]} 13... Nd4 {[%clk
0:02:33.3]} 14. Na3 {[%clk 0:02:12.6]} 14... Nxe4 {[%clk 0:02:32]} 15. c3 {[%clk
0:02:13.2]} 15... Nc6 {[%clk 0:02:31.4]} 16. d4 {[%clk 0:02:14.1]} 16... cxd4
{[%clk 0:02:31.3]} 17. cxd4 {[%clk 0:02:15]} 17... d5 {[%clk 0:02:31]} 18. Nb5
{[%clk 0:02:14.3]} 18... Rc8 {[%clk 0:02:30.5]} 19. Bf4 {[%clk 0:02:14.3]} 19...
a6 {[%clk 0:02:27.5]} 20. Nc7+ {[%clk 0:02:13.1]} 20... Kd7 {[%clk 0:02:26.6]}
21. Nxd5 {[%clk 0:02:13.6]} 21... e6 {[%clk 0:02:26.7]} 22. Nb6+ {[%clk
0:02:13.6]} 22... Kd8 {[%clk 0:02:26.1]} 23. Nxc8 {[%clk 0:02:14.5]} 23... Kxc8
{[%clk 0:01:52.2]} 24. d5 {[%clk 0:02:12.6]} 24... exd5 {[%clk 0:01:52.1]} 25.
Rxd5 {[%clk 0:02:13.5]} 25... Nf6 {[%clk 0:01:50.9]} 26. Rf5 {[%clk 0:02:11]}
1-0

[Event "*** Titled Tuesday Blitz"]
[Site "Chess.com"]
[Date "2021.04.06"]
[Round "4"]
[White "aljado"]
[Black "oogee"]
[Result "0-1"]
[WhiteElo "2103"]
[BlackElo "2381"]
[TimeControl "180+1"]
[EndTime "10:36:12 PDT"]
[Termination "oogee won by resignation"]

1. e4 {[%clk 0:03:00.9]} 1... c5 {[%clk 0:02:58.7]} 2. Nf3 {[%clk 0:02:59.9]}
2... d6 {[%clk 0:02:57.4]} 3. c3 {[%clk 0:02:57.6]} 3... Nf6 {[%clk 0:02:54.8]}
4. Bc4 {[%clk 0:02:57.2]} 4... Nxe4 {[%clk 0:02:47.8]} 5. Qa4+ {[%clk
0:02:53.9]} 5... Bd7 {[%clk 0:02:45.1]} 6. Bxf7+ {[%clk 0:02:54.3]} 6... Kxf7
{[%clk 0:02:44.2]} 7. Qxe4 {[%clk 0:02:54.6]} 7... Nc6 {[%clk 0:02:18.6]} 8.
Ng5+ {[%clk 0:02:47.3]} 8... Kg8 {[%clk 0:02:17.3]} 9. Qd5+ {[%clk 0:02:44.8]}
9... e6 {[%clk 0:02:16.8]} 10. Nxe6 {[%clk 0:02:12.5]} 10... Qe7 {[%clk
0:02:16]} 11. O-O {[%clk 0:02:12.8]} 11... Bxe6 {[%clk 0:02:14.1]} 12. Qf3
{[%clk 0:02:10.3]} 12... Qf7 {[%clk 0:02:12.9]} 13. Qg3 {[%clk 0:02:07]} 13...
h5 {[%clk 0:02:06.6]} 14. d4 {[%clk 0:02:05.5]} 14... h4 {[%clk 0:02:05.7]} 15.
Qe3 {[%clk 0:01:58.7]} 15... h3 {[%clk 0:02:01.4]} 16. g3 {[%clk 0:01:56.4]}
16... Re8 {[%clk 0:01:38.9]} 17. Re1 {[%clk 0:01:50.8]} 17... Bd7 {[%clk
0:01:35.8]} 18. Qd2 {[%clk 0:01:48.3]} 18... Qf3 {[%clk 0:01:31]} 0-1

[Event "*** Titled Tuesday Blitz"]
[Site "Chess.com"]
[Date "2021.04.06"]
[Round "4"]
[White "albi1999"]
[Black "KetiGrant"]
[Result "1-0"]
[WhiteElo "2594"]
[BlackElo "2347"]
[TimeControl "180+1"]
[EndTime "10:36:22 PDT"]
[Termination "albi1999 won by resignation"]

1. d4 {[%clk 0:03:00.9]} 1... Nf6 {[%clk 0:02:59.2]} 2. c4 {[%clk 0:02:56.5]}
2... g6 {[%clk 0:03:00.1]} 3. g3 {[%clk 0:02:53.8]} 3... Bg7 {[%clk 0:03:01]} 4.
Bg2 {[%clk 0:02:52.7]} 4... O-O {[%clk 0:03:01.5]} 5. Nc3 {[%clk 0:02:52.9]}
5... d6 {[%clk 0:03:01.4]} 6. Nf3 {[%clk 0:02:53.2]} 6... Nc6 {[%clk 0:03:01.1]}
7. O-O {[%clk 0:02:53]} 7... e5 {[%clk 0:03:01.1]} 8. dxe5 {[%clk 0:02:53.9]}
8... dxe5 {[%clk 0:02:58.6]} 9. Bg5 {[%clk 0:02:53.5]} 9... Qe8 {[%clk
0:02:29.5]} 10. Qc1 {[%clk 0:02:45.3]} 10... Be6 {[%clk 0:02:24.2]} 11. b3
{[%clk 0:02:35.6]} 11... Nd7 {[%clk 0:02:21.8]} 12. Bh6 {[%clk 0:02:35]} 12...
f5 {[%clk 0:02:17.8]} 13. Bxg7 {[%clk 0:02:34.6]} 13... Kxg7 {[%clk 0:02:18.3]}
14. Qb2 {[%clk 0:02:28.6]} 14... Qe7 {[%clk 0:02:15.3]} 15. Nd5 {[%clk
0:02:26.7]} 15... Bxd5 {[%clk 0:02:10.1]} 16. cxd5 {[%clk 0:02:27.6]} 16... Nb4
{[%clk 0:02:09.9]} 17. Rfd1 {[%clk 0:02:24.5]} 17... Rae8 {[%clk 0:02:04.7]} 18.
Rac1 {[%clk 0:02:22.2]} 18... Nf6 {[%clk 0:01:58.5]} 19. Ng5 {[%clk 0:01:37.8]}
19... Nfxd5 {[%clk 0:01:53.6]} 20. Bxd5 {[%clk 0:01:36.3]} 20... Qxg5 {[%clk
0:01:48.9]} 21. Rxc7+ {[%clk 0:01:35.8]} 21... Re7 {[%clk 0:01:47.6]} 22. Qxe5+
{[%clk 0:01:35.5]} 1-0

[Event "*** Titled Tuesday Blitz"]
[Site "Chess.com"]
[Date "2021.04.06"]
[Round "4"]
[White "Omk124"]
[Black "Flopezin"]
[Result "1-0"]
[WhiteElo "2581"]
[BlackElo "2340"]
[TimeControl "180+1"]
[EndTime "10:36:40 PDT"]
[Termination "Omk124 won by resignation"]

1. e4 {[%clk 0:03:00.9]} 1... e5 {[%clk 0:02:59.8]} 2. Nf3 {[%clk 0:03:00.8]}
2... Nc6 {[%clk 0:03:00.4]} 3. Bc4 {[%clk 0:03:01]} 3... Nf6 {[%clk 0:02:59.8]}
4. d3 {[%clk 0:03:00.7]} 4... Bc5 {[%clk 0:03:00.1]} 5. c3 {[%clk 0:03:00.9]}
5... d6 {[%clk 0:03:00.6]} 6. Nbd2 {[%clk 0:03:01.3]} 6... O-O {[%clk
0:03:00.5]} 7. Nf1 {[%clk 0:03:01.6]} 7... Be6 {[%clk 0:02:59.3]} 8. Bb5 {[%clk
0:03:00.2]} 8... a6 {[%clk 0:02:56.5]} 9. Ba4 {[%clk 0:03:00.6]} 9... b5 {[%clk
0:02:55.5]} 10. Bc2 {[%clk 0:03:00.6]} 10... d5 {[%clk 0:02:48]} 11. exd5 {[%clk
0:02:55.3]} 11... Qxd5 {[%clk 0:02:47]} 12. Ng3 {[%clk 0:02:52.8]} 12... Rad8
{[%clk 0:02:38.7]} 13. Qe2 {[%clk 0:02:51.2]} 13... Rfe8 {[%clk 0:02:20.4]} 14.
O-O {[%clk 0:02:49.6]} 14... Bg4 {[%clk 0:02:15.2]} 15. Ne4 {[%clk 0:02:32.1]}
15... Nxe4 {[%clk 0:02:11.9]} 16. dxe4 {[%clk 0:02:33]} 16... Qe6 {[%clk
0:02:03.3]} 17. h3 {[%clk 0:02:25.2]} 17... Bh5 {[%clk 0:01:58.4]} 18. Bb3
{[%clk 0:02:13.6]} 18... Qf6 {[%clk 0:01:52.1]} 19. g4 {[%clk 0:02:04.3]} 19...
Qg6 {[%clk 0:01:33.8]} 20. Ng5 {[%clk 0:01:53]} 20... Qf6 {[%clk 0:01:13.2]} 21.
gxh5 {[%clk 0:01:50.7]} 21... h6 {[%clk 0:01:13.3]} 22. Nxf7 {[%clk 0:01:49.9]}
1-0

[Event "*** Titled Tuesday Blitz"]
[Site "Chess.com"]
[Date "2021.04.06"]
[Round "4"]
[White "Anton_Demchenko"]
[Black "juancruzarias"]
[Result "1-0"]
[WhiteElo "2879"]
[BlackElo "2567"]
[TimeControl "180+1"]
[EndTime "10:36:46 PDT"]
[Termination "Anton_Demchenko won by resignation"]

1. e4 {[%clk 0:03:00.9]} 1... e6 {[%clk 0:03:00.4]} 2. d4 {[%clk 0:03:00.8]}
2... d5 {[%clk 0:03:00.6]} 3. Nc3 {[%clk 0:03:00.4]} 3... Bb4 {[%clk 0:02:59]}
4. e5 {[%clk 0:02:57.5]} 4... Ne7 {[%clk 0:02:58.9]} 5. a3 {[%clk 0:02:55.8]}
5... Bxc3+ {[%clk 0:02:59.1]} 6. bxc3 {[%clk 0:02:56.7]} 6... b6 {[%clk
0:02:59.8]} 7. Qg4 {[%clk 0:02:56.4]} 7... Ng6 {[%clk 0:02:58.9]} 8. h4 {[%clk
0:02:56.6]} 8... h5 {[%clk 0:02:59.1]} 9. Qd1 {[%clk 0:02:55.8]} 9... c5 {[%clk
0:02:53]} 10. Bb5+ {[%clk 0:02:49.5]} 10... Bd7 {[%clk 0:02:46.5]} 11. Bd3
{[%clk 0:02:49.6]} 11... Nxh4 {[%clk 0:02:05]} 12. Nf3 {[%clk 0:02:48.2]} 12...
Nxf3+ {[%clk 0:01:47.1]} 13. Qxf3 {[%clk 0:02:49.1]} 13... c4 {[%clk 0:01:47.5]}
14. Rxh5 {[%clk 0:02:44.2]} 14... Rxh5 {[%clk 0:01:45.9]} 15. Qxh5 {[%clk
0:02:45.1]} 15... Qe7 {[%clk 0:01:45.8]} 16. Bg5 {[%clk 0:02:38.7]} 16... Qf8
{[%clk 0:01:45]} 17. Be2 {[%clk 0:02:36]} 17... Ba4 {[%clk 0:01:42.6]} 18. Kd2
{[%clk 0:02:35.6]} 18... Nc6 {[%clk 0:01:33.1]} 19. f4 {[%clk 0:02:30.9]} 19...
Ne7 {[%clk 0:01:32.8]} 20. g4 {[%clk 0:02:27.3]} 20... Kd7 {[%clk 0:01:31.3]}
21. f5 {[%clk 0:02:25.1]} 21... Qh8 {[%clk 0:00:47.2]} 22. Qxf7 {[%clk 0:02:21]}
1-0

[Event "*** Titled Tuesday Blitz"]
[Site "Chess.com"]
[Date "2021.04.06"]
[Round "4"]
[White "yandry1996"]
[Black "ZarinaShafigullina"]
[Result "1-0"]
[WhiteElo "2254"]
[BlackElo "2417"]
[TimeControl "180+1"]
[EndTime "10:36:46 PDT"]
[Termination "yandry1996 won by resignation"]

1. e4 {[%clk 0:03:00.9]} 1... c5 {[%clk 0:02:58.2]} 2. Nf3 {[%clk 0:03:01]} 2...
d6 {[%clk 0:02:57.8]} 3. d4 {[%clk 0:03:01.3]} 3... cxd4 {[%clk 0:02:57.7]} 4.
Nxd4 {[%clk 0:03:02.2]} 4... Nf6 {[%clk 0:02:57]} 5. Nc3 {[%clk 0:03:01.9]} 5...
a6 {[%clk 0:02:55.8]} 6. f3 {[%clk 0:03:02.4]} 6... e5 {[%clk 0:02:55.2]} 7. Nb3
{[%clk 0:03:03]} 7... Be6 {[%clk 0:02:54.8]} 8. Be3 {[%clk 0:03:03.1]} 8... Be7
{[%clk 0:02:54.7]} 9. Qd2 {[%clk 0:03:03.1]} 9... Nbd7 {[%clk 0:02:54.4]} 10.
O-O-O {[%clk 0:03:03.6]} 10... O-O {[%clk 0:02:54.3]} 11. Kb1 {[%clk 0:03:03.6]}
11... b5 {[%clk 0:02:52.9]} 12. Qf2 {[%clk 0:02:59.2]} 12... Rc8 {[%clk
0:02:51.8]} 13. g4 {[%clk 0:02:58.4]} 13... b4 {[%clk 0:02:48.5]} 14. Nd5 {[%clk
0:02:58.3]} 14... Bxd5 {[%clk 0:02:43.7]} 15. exd5 {[%clk 0:02:59.2]} 15... a5
{[%clk 0:02:42.2]} 16. Bb5 {[%clk 0:02:47.9]} 16... Rb8 {[%clk 0:02:29.4]} 17.
Bc6 {[%clk 0:02:46.6]} 17... Ne8 {[%clk 0:02:14.3]} 18. Bxd7 {[%clk 0:02:34.3]}
18... Qxd7 {[%clk 0:02:14]} 19. Nxa5 {[%clk 0:02:34.9]} 19... Qa4 {[%clk
0:02:08]} 20. Nc6 {[%clk 0:02:33.8]} 20... Rb7 {[%clk 0:02:07.9]} 21. Rd3 {[%clk
0:02:13.3]} 21... Nf6 {[%clk 0:02:02.4]} 22. g5 {[%clk 0:01:47.6]} 22... Nh5
{[%clk 0:02:01.2]} 23. Qh4 {[%clk 0:01:43.2]} 23... Ra8 {[%clk 0:01:58.8]} 24.
a3 {[%clk 0:01:43.3]} 24... g6 {[%clk 0:01:52.3]} 25. Nxb4 {[%clk 0:01:22.3]}
25... Rxb4 {[%clk 0:01:50.6]} 26. Qxb4 {[%clk 0:01:22.2]} 1-0

[Event "*** Titled Tuesday Blitz"]
[Site "Chess.com"]
[Date "2021.04.06"]
[Round "4"]
[White "kirillshevchenko"]
[Black "federicosellitti"]
[Result "1-0"]
[WhiteElo "2833"]
[BlackElo "2577"]
[TimeControl "180+1"]
[EndTime "10:36:50 PDT"]
[Termination "kirillshevchenko won by resignation"]

1. e4 {[%clk 0:03:00.9]} 1... c5 {[%clk 0:03:00]} 2. c3 {[%clk 0:02:59.7]} 2...
Nf6 {[%clk 0:03:00]} 3. e5 {[%clk 0:02:59.7]} 3... Nd5 {[%clk 0:03:00.6]} 4. Bc4
{[%clk 0:03:00.3]} 4... e6 {[%clk 0:03:00.2]} 5. d4 {[%clk 0:02:59.9]} 5... cxd4
{[%clk 0:02:59.8]} 6. cxd4 {[%clk 0:03:00.8]} 6... Nc6 {[%clk 0:02:59.8]} 7. Nf3
{[%clk 0:03:01.2]} 7... d6 {[%clk 0:02:58.9]} 8. O-O {[%clk 0:03:01.7]} 8... Be7
{[%clk 0:02:58.8]} 9. Qc2 {[%clk 0:02:58.9]} 9... Nb6 {[%clk 0:02:47]} 10. Bb5
{[%clk 0:02:52.8]} 10... Bd7 {[%clk 0:02:47.4]} 11. Be2 {[%clk 0:02:50.5]} 11...
Rc8 {[%clk 0:02:42]} 12. Nc3 {[%clk 0:02:50.3]} 12... a6 {[%clk 0:02:27.4]} 13.
Bf4 {[%clk 0:02:46.5]} 13... dxe5 {[%clk 0:02:19.4]} 14. dxe5 {[%clk 0:02:47.4]}
14... Nd5 {[%clk 0:02:07.7]} 15. Nxd5 {[%clk 0:02:15.3]} 15... exd5 {[%clk
0:02:08.6]} 16. Qd2 {[%clk 0:02:09.8]} 16... Be6 {[%clk 0:02:08.2]} 17. Ng5
{[%clk 0:02:00.1]} 17... Bxg5 {[%clk 0:01:48.3]} 18. Bxg5 {[%clk 0:01:58.5]}
18... Qb6 {[%clk 0:01:36.6]} 19. Rac1 {[%clk 0:01:44.3]} 19... O-O {[%clk
0:01:35.8]} 20. Bf6 {[%clk 0:01:41.7]} 20... gxf6 {[%clk 0:01:20.5]} 21. exf6
{[%clk 0:01:40.8]} 21... Kh8 {[%clk 0:01:20.4]} 22. Qh6 {[%clk 0:01:37.2]} 22...
Rg8 {[%clk 0:01:20.1]} 23. Bd3 {[%clk 0:01:37.8]} 23... Rg6 {[%clk 0:01:17.9]}
24. Bxg6 {[%clk 0:01:37]} 1-0